bitfinex-derivatives/quotes_SOLF0:USTF0_20230904
["timestamp","ask_amount","ask_price","bid_price","bid_amount"]
[1693864934044,15.59,19.25,19.239,229.17]
[1693864937344,15.59,19.25,19.24,21.695]
[1693864938445,15.59,19.25,19.242,229.17]
[1693864938644,0.45454546,19.25,19.242,229.17]
[1693864938851,9.29485421,19.254,19.242,229.17]
[1693864939043,0.45454546,19.253,19.242,229.17]
[1693864941045,229.17,19.252,19.24,21.695]
[1693864941254,15.59,19.25,19.24,21.695]
[1693864946855,15.59,19.25,19.239,229.17]
[1693864951752,0.45454546,19.25,19.239,229.17]
[1693864952060,9.28393112,19.253,19.239,229.17]
[1693864952355,0.45454546,19.252,19.239,229.17]
[1693864954563,15.59,19.25,19.239,229.17]
[1693864954858,0.45454546,19.25,19.239,229.17]
[1693864955060,0.45454546,19.253,19.239,229.17]
[1693864955756,39.48772623,19.26,19.243,229.17]
[1693864955757,229.17,19.257,19.243,229.17]
[1693864956157,229.17,19.257,19.244,20.7406]
[1693864956659,15.59,19.26,19.249,229.17]
[1693864956861,8.83851434,19.259,19.249,229.17]
[1693864957167,8.83851434,19.258,19.252,229.17]
[1693864957359,39.48772623,19.264,19.252,229.17]
[1693864957360,15.59,19.26,19.252,229.17]
[1693864957659,8.83839573,19.259,19.252,229.17]
[1693864957861,0.45454546,19.263,19.252,229.17]
[1693864958062,9.29323365,19.263,19.252,229.17]
[1693864958361,0.45454546,19.262,19.252,229.17]
[1693864966564,0.45454546,19.263,19.252,229.17]
[1693864967670,0.45454546,19.263,19.254,229.17]
[1693864967864,0.45454546,19.262,19.254,229.17]
[1693864968071,0.45454546,19.263,19.255,20.4035]
[1693864968367,0.45454546,19.262,19.255,20.4035]
[1693864968570,0.45454546,19.263,19.255,20.4035]
[1693864968766,0.45454546,19.262,19.255,20.4035]
[1693864968967,0.45454546,19.263,19.255,20.4035]
[1693864969266,0.45454546,19.262,19.255,20.4035]
[1693864969471,0.45454546,19.263,19.254,229.17]
[1693864969669,229.17,19.273,19.26,229.17]
[1693864969869,8.84994858,19.272,19.26,229.17]
[1693864971073,229.17,19.266,19.253,229.17]
[1693864971272,15.58,19.264,19.253,229.17]
[1693864971568,0.45454546,19.263,19.254,22.1601]
[1693864971767,15.58,19.264,19.254,22.1601]
[1693864971965,0.45454546,19.263,19.254,22.1601]
[1693864972164,15.58,19.264,19.254,22.1601]
[1693864972372,0.45454546,19.263,19.254,22.1601]
[1693864972570,15.58,19.264,19.254,22.1601]
[1693864972771,0.45454546,19.263,19.254,22.1601]
[1693864972968,15.58,19.264,19.254,22.1601]
[1693864973277,0.45454546,19.263,19.254,22.1601]
[1693864973468,15.58,19.264,19.255,229.17]
[1693864973668,0.45454546,19.263,19.257,0.71818645]
[1693864973870,9.30249119,19.268,19.257,0.71818645]
[1693864974066,15.58,19.266,19.257,0.71818645]
[1693864974265,15.58,19.264,19.257,0.71818645]
[1693864974471,0.45454546,19.263,19.257,0.71818645]
[1693864974671,9.3025516,19.268,19.255,229.17]
[1693864974868,15.58,19.266,19.255,229.17]
[1693864975072,15.58,19.264,19.255,229.17]
[1693864975272,0.45454546,19.264,19.255,229.17]
[1693864975570,9.30237782,19.268,19.255,229.17]
[1693864975766,15.58,19.266,19.255,229.17]
[1693864975972,229.17,19.27,19.255,229.17]
[1693864975973,15.58,19.264,19.255,229.17]
[1693864976175,0.45454546,19.264,19.255,229.17]
[1693864976369,9.30248469,19.268,19.255,229.17]
[1693864976671,15.58,19.266,19.254,22.1601]
[1693864976873,15.58,19.269,19.256,229.17]
[1693864982279,15.58,19.269,19.254,22.1601]
[1693864982477,229.17,19.266,19.254,22.1601]
[1693864987986,124.8,19.264,19.254,22.1601]
[1693864989885,15.58,19.266,19.255,124.8]
[1693864990389,15.58,19.266,19.256,21.9786]
[1693864992791,15.57,19.264,19.256,21.9786]
[1693864993390,124.8,19.266,19.256,21.9786]
[1693864999801,124.8,19.268,19.257,124.8]
[1693865000207,124.8,19.268,19.258,21.9369]
[1693865003403,124.8,19.268,19.255,124.8]
[1693865003703,124.8,19.268,19.256,21.4751]
[1693865007206,15.57,19.269,19.259,124.8]
[1693865007705,15.57,19.269,19.26,20.7232]
[1693865010708,124.8,19.27,19.26,20.7232]
[1693865013809,15.57,19.269,19.26,20.7232]
[1693865014407,15.57,19.264,19.26,20.7232]
[1693865014606,124.8,19.265,19.26,20.7232]
[1693865015005,124.8,19.265,19.254,124.8]
[1693865015204,124.8,19.265,19.255,21.7843]
[1693865018108,124.8,19.268,19.257,124.8]
[1693865018613,124.8,19.268,19.258,20.9558]
[1693865033019,112.26,19.267,19.26,112.26]
[1693865033218,112.26,19.268,19.261,112.26]
[1693865043128,112.26,19.266,19.259,112.26]
[1693865045224,112.26,19.268,19.261,112.26]
[1693865048728,112.26,19.268,19.263,0.7477759]
[1693865052525,112.26,19.272,19.265,112.26]
[1693865053224,112.26,19.274,19.267,112.26]
[1693865056434,112.26,19.272,19.265,112.26]
[1693865060435,112.26,19.266,19.259,112.26]
[1693865063137,112.26,19.266,19.252,21.7655]
[1693865063138,112.26,19.268,19.261,112.26]
[1693865065240,112.26,19.273,19.266,112.26]
[1693865073339,112.26,19.274,19.266,112.26]
[1693865080949,15.57,19.274,19.268,112.26]
[1693865083250,112.26,19.274,19.267,112.26]
[1693865101775,112.19,19.274,19.267,112.19]
[1693865103174,15.57,19.274,19.268,112.19]
[1693865109881,112.19,19.274,19.267,112.19]
[1693865123886,78.53,19.274,19.267,78.53]
[1693865126088,78.53,19.277,19.27,78.53]
[1693865127887,78.53,19.28,19.273,78.53]
[1693865129294,78.98454546,19.28,19.273,78.53]
[1693865129585,78.53,19.28,19.273,78.53]
[1693865133096,78.53,19.278,19.271,78.53]
[1693865136090,78.53,19.282,19.275,78.53]
[1693865136491,78.53,19.287,19.28,78.53]
[1693865143097,78.53,19.288,19.28,78.53]
[1693865145297,22.88345089,19.295,19.283,78.53]
[1693865145298,78.53,19.29,19.283,78.53]
[1693865145493,1461.89772623,19.314,19.263,31.65372254]
[1693865145494,78.53,19.293,19.286,78.53]
[1693865146099,78.53,19.296,19.289,78.53]
[1693865146297,78.53,19.3,19.292,78.53]
[1693865147199,15.56,19.3,19.293,78.53]
[1693865153103,78.53,19.299,19.291,78.53]
[1693865163109,78.53,19.298,19.291,78.53]
[1693865169215,78.53,19.298,19.293,0.82177693]
[1693865170521,15.56,19.297,19.293,0.82177693]
[1693865170717,78.53,19.295,19.287,78.53]
[1693865172318,78.53,19.289,19.281,78.53]
[1693865180825,78.53,19.289,19.285,0.18944825]
[1693865183123,78.53,19.29,19.285,0.18944825]
[1693865183526,78.53,19.291,19.285,0.18944825]
[1693865185229,78.53,19.288,19.281,78.78264821]
[1693865193231,78.53,19.29,19.283,78.53]
[1693865196528,78.42,19.29,19.283,78.42]
[1693865203238,78.42,19.29,19.281,0.25264821]
[1693865203239,78.42,19.288,19.281,78.67264821]
[1693865204628,0.45454546,19.299,19.284,78.42]
[1693865204834,78.42,19.292,19.284,78.42]
[1693865210138,78.42,19.294,19.287,78.42]
[1693865210740,15.56,19.293,19.281,0.25264821]
[1693865210935,15.56,19.293,19.287,78.42]
[1693865213231,15.56,19.293,19.286,78.42]
[1693865216937,78.42,19.292,19.285,78.42]
[1693865224753,78.42,19.294,19.287,78.42]
[1693865233158,0.45454546,19.302,19.286,99.4282]
[1693865233159,78.42,19.293,19.286,99.4282]
[1693865243263,78.42,19.295,19.287,78.42]
[1693865250966,78.42,19.296,19.288,78.42]
[1693865260576,78.42,19.296,19.289,78.42]
[1693865284101,78.42,19.297,19.289,78.42]
[1693865295916,78.42,19.293,19.286,99.4282]
[1693865299715,78.42,19.296,19.289,78.42]
[1693865303217,78.42,19.297,19.29,78.42]
[1693865306520,78.42,19.3,19.293,78.42]
[1693865313225,78.42,19.299,19.292,78.42]
[1693865320628,0.45454546,19.306,19.289,27.28266268]
[1693865320629,78.42,19.298,19.291,78.42]
[1693865323137,78.42,19.299,19.291,78.42]
[1693865333244,78.42,19.297,19.29,78.42]
[1693865343254,15.55,19.297,19.29,78.42]
[1693865346952,15.55,19.297,19.29,78.48]
[1693865348458,78.42,19.298,19.29,78.48]
[1693865353255,78.42,19.296,19.29,78.48]
[1693865356559,78.42,19.296,19.29,78.42]
[1693865363265,78.42,19.298,19.29,78.42]
[1693865370262,15.55,19.297,19.29,78.42]
[1693865382479,78.42,19.296,19.288,78.42]
[1693865382683,78.42,19.29,19.285,0.06315033]
[1693865383184,78.42,19.287,19.285,0.06315033]
[1693865386378,78.42,19.287,19.284,0.85472885]
[1693865390886,78.42,19.287,19.285,0.06315033]
[1693865401789,0.78750553,19.288,19.285,0.06315033]
[1693865401991,78.42,19.293,19.286,78.42]
[1693865402986,78.42,19.296,19.289,78.42]
[1693865403293,15.56,19.297,19.291,78.42]
[1693865403790,78.42,19.297,19.29,78.42]
[1693865407990,78.42,19.3,19.293,78.42]
[1693865433218,78.42,19.299,19.292,78.42]
[1693865443223,78.42,19.3,19.293,78.42]
[1693865453233,78.42,19.299,19.292,78.42]
[1693865463247,78.42,19.297,19.29,78.42]
[1693865483157,78.42,19.296,19.289,78.42]
[1693865483961,78.42,19.293,19.288,0.06314051]
[1693865490570,78.42,19.293,19.286,98.9291]
[1693865492267,78.42,19.287,19.28,78.42]
[1693865492466,194.3105368,19.306,19.272,320.79570423]
[1693865492467,78.42,19.284,19.277,78.42]
[1693865496971,78.42,19.284,19.28,0.18949733]
[1693865503177,31.46635855,19.292,19.28,0.18949733]
[1693865503178,78.42,19.283,19.28,0.18949733]
[1693865505188,78.42,19.287,19.28,78.60949733]
[1693865505380,78.42,19.287,19.28,78.42]
[1693865511991,78.42,19.287,19.284,0.12630626]
[1693865513090,78.42,19.285,19.28,0.1894973]
[1693865520299,78.42,19.285,19.278,78.42]
[1693865527303,0.45454546,19.291,19.284,1e-08]
[1693865527599,78.42,19.285,19.284,1e-08]
[1693865527798,78.42,19.285,19.277,78.42]
[1693865527998,78.42,19.284,19.277,78.42]
[1693865532999,78.42,19.283,19.276,78.42]
[1693865534506,78.42,19.283,19.28,0.12633244]
[1693865535407,78.42,19.283,19.276,78.42]
[1693865540804,78.42,19.286,19.284,0.06315359]
[1693865542008,78.42,19.286,19.284,0.12315359]
[1693865547014,78.42,19.289,19.284,0.12315359]
[1693865550619,78.42,19.289,19.282,78.42]
[1693865556128,78.42,19.289,19.284,0.06315359]
[1693865559621,78.42,19.289,19.285,0.72813818]
[1693865561529,78.42,19.29,19.285,0.72813818]
[1693865562330,78.42,19.29,19.284,0.06315359]
[1693865563532,78.42,19.292,19.285,78.42]
[1693865563730,0.45454546,19.291,19.285,78.42]
[1693865564331,78.42,19.289,19.284,0.06315359]
[1693865565433,78.42,19.289,19.282,78.42]
[1693865567529,78.42,19.287,19.28,21.4857]
[1693865570933,78.42,19.287,19.284,0.06315359]
[1693865573132,78.42,19.285,19.284,0.06315359]
[1693865580639,78.42,19.285,19.28,21.4857]
[1693865581644,78.42,19.285,19.278,78.42]
[1693865582638,78.42,19.282,19.275,78.42]
[1693865585049,78.42,19.282,19.276,0.18953654]
[1693865587246,32.11331448,19.285,19.276,0.18953654]
[1693865587247,78.42,19.279,19.276,0.18953654]
[1693865588739,78.42,19.279,19.276,0.92170894]
[1693865589842,78.42,19.279,19.272,78.67276596]
[1693865591145,78.42,19.273,19.268,0.31602069]
[1693865591545,78.42,19.271,19.268,0.31602069]
[1693865595647,78.42,19.271,19.264,78.79930075]
[1693865595648,78.42,19.271,19.264,78.42]
[1693865597950,78.42,19.274,19.267,78.42]
[1693865602761,78.42,19.273,19.266,78.42]
[1693865603257,78.42,19.274,19.267,78.42]
[1693865605246,0.45454546,19.284,19.267,78.42]
[1693865605247,78.42,19.277,19.27,78.42]
[1693865605855,45.0519,19.277,19.27,78.42]
[1693865606059,78.42,19.281,19.273,78.42]
[1693865606356,78.42,19.284,19.277,78.42]
[1693865613261,78.42,19.285,19.278,78.42]
[1693865643187,78.42,19.287,19.28,78.42]
[1693865646485,78.42,19.289,19.282,78.42]
[1693865653193,78.42,19.291,19.284,78.42]
[1693865663206,78.42,19.291,19.272,221.98860257]
[1693865663207,78.42,19.292,19.285,78.42]
[1693865673218,78.42,19.295,19.288,78.42]
[1693865693226,78.42,19.294,19.287,78.42]
[1693865694536,15.55,19.293,19.287,78.42]
[1693865696136,78.42,19.294,19.287,78.42]
[1693865698536,78.42,19.297,19.29,78.42]
[1693865700133,0.45454546,19.307,19.29,78.42]
[1693865700134,78.42,19.298,19.29,78.42]
[1693865703243,78.42,19.297,19.29,78.42]
[1693865705146,78.42,19.294,19.287,78.42]
[1693865705947,15.55,19.293,19.287,78.42]
[1693865708145,78.42,19.291,19.284,78.42]
[1693865713245,78.42,19.292,19.285,78.42]
[1693865716246,78.42,19.295,19.287,78.42]
[1693865719951,78.42,19.297,19.29,78.42]
[1693865743173,78.42,19.297,19.289,78.42]
[1693865753178,78.42,19.298,19.291,78.42]
[1693865765180,45.0645,19.3,19.293,78.42]
[1693865765385,0.45454546,19.311,19.285,155.2]
[1693865765682,0.45454546,19.31,19.301,78.42]
[1693865766084,0.45454546,19.31,19.305,78.42]
[1693865766386,0.45454546,19.311,19.305,78.42]
[1693865771584,93.97,19.31,19.302,78.42]
[1693865771782,78.42,19.31,19.302,78.42]
[1693865773189,15.55,19.31,19.303,78.42]
[1693865780092,78.42,19.313,19.306,78.42]
[1693865783394,78.42,19.317,19.309,78.42]
[1693865784487,15.54,19.319,19.312,78.42]
[1693865786604,78.42,19.32,19.312,78.42]
[1693865786802,78.42,19.32,19.313,78.42]
[1693865786803,15.54,19.32,19.313,78.42]
[1693865788104,15.54,19.323,19.316,78.42]
[1693865791706,78.42,19.326,19.32,78.42]
[1693865792703,15.54,19.329,19.323,78.42]
[1693865793198,78.42,19.331,19.323,78.42]
[1693865793402,15.54,19.332,19.327,78.42]
[1693865793908,15.54,19.329,19.322,78.42]
[1693865797909,78.42,19.332,19.325,78.42]
[1693865802409,78.42,19.333,19.326,78.42]
[1693865803203,78.42,19.334,19.327,78.42]
[1693865803611,93.96,19.334,19.327,78.42]
[1693865803811,78.42,19.334,19.327,78.42]
[1693865804603,93.96,19.334,19.327,78.42]
[1693865804803,78.42,19.334,19.327,78.42]
[1693865805009,8.85947543,19.333,19.327,78.42]
[1693865805709,78.42,19.334,19.327,78.42]
[1693865806413,93.94,19.334,19.327,78.42]
[1693865806608,78.42,19.334,19.327,78.42]
[1693865807209,93.94,19.334,19.327,78.42]
[1693865807413,78.42,19.334,19.327,78.42]
[1693865809010,93.94,19.334,19.327,78.42]
[1693865809213,78.42,19.334,19.327,78.42]
[1693865809914,93.94,19.334,19.327,78.42]
[1693865810214,78.42,19.334,19.327,78.42]
[1693865811218,8.86248494,19.333,19.327,78.42]
[1693865811814,78.42,19.334,19.327,78.42]
[1693865812014,8.86249613,19.333,19.327,78.42]
[1693865812512,78.42,19.334,19.327,78.42]
[1693865813113,8.86235402,19.333,19.327,78.42]
[1693865814027,78.42,19.334,19.327,78.42]
[1693865816727,78.42,19.331,19.324,78.42]
[1693865819126,21.6606,19.34,19.311,20.6461]
[1693865819127,15.52,19.327,19.321,78.42]
[1693865819331,21.6606,19.34,19.319,78.42]
[1693865819332,78.87454546,19.326,19.319,78.42]
[1693865819540,78.42,19.326,19.319,78.42]
[1693865819833,78.87454546,19.326,19.319,78.42]
[1693865820129,78.42,19.326,19.319,78.42]
[1693865821931,78.42,19.323,19.311,20.6461]
[1693865822233,15.52,19.32,19.313,78.42]
[1693865823233,15.52,19.321,19.314,78.42]
[1693865829133,78.42,19.321,19.313,78.42]
[1693865843246,78.42,19.32,19.313,78.42]
[1693865851460,78.42,19.317,19.309,78.42]
[1693865853256,15.53,19.314,19.307,78.42]
[1693865855357,78.42,19.31,19.302,78.42]
[1693865857258,78.42,19.313,19.305,78.42]
[1693865857651,78.42,19.315,19.308,78.42]
[1693865860162,15.53,19.314,19.308,78.42]
[1693865863169,78.42,19.314,19.306,78.42]
[1693865872080,78.42,19.314,19.306,78.48]
[1693865879582,78.42,19.311,19.306,0.06]
[1693865880577,15.54,19.31,19.306,0.06]
[1693865881785,15.54,19.31,19.303,78.42]
[1693865883279,78.42,19.309,19.301,78.42]
[1693865891988,78.42,19.307,19.3,78.48310119]
[1693865896390,78.42,19.307,19.3,78.42]
[1693865901200,78.42,19.311,19.303,110.85384472]
[1693865903202,78.42,19.311,19.303,78.42]
[1693865903705,15.54,19.31,19.303,78.42]
[1693865909606,78.42,19.311,19.303,78.42]
[1693865921922,15.54,19.31,19.303,78.42]
[1693865922621,78.42,19.312,19.304,78.42]
[1693865923214,78.42,19.31,19.302,78.42]
[1693865924521,0.45454546,19.316,19.3,30.85293]
[1693865924522,78.42,19.307,19.3,0.06310119]
[1693865925711,15.54,19.3,19.296,0.12622762]
[1693865925917,601.54,19.314,19.296,0.12622762]
[1693865926112,15.54,19.297,19.296,0.12622762]
[1693865928518,15.54,19.297,19.292,0.18937932]
[1693865932024,15.54,19.293,19.292,0.18937932]
[1693865932225,78.42,19.293,19.284,78.73575856]
[1693865932426,78.42,19.291,19.284,78.73575856]
[1693865933128,78.42,19.291,19.284,0.31575856]
[1693865940231,78.42,19.291,19.283,78.42]
[1693865943233,78.42,19.288,19.281,78.42]
[1693865944633,78.42,19.288,19.284,0.1894577]
[1693865952837,78.42,19.287,19.284,0.1894577]
[1693865953143,0.45454546,19.299,19.284,0.1894577]
[1693865953144,78.42,19.285,19.284,0.1894577]
[1693865954542,78.42,19.287,19.284,0.1894577]
[1693865955436,78.42,19.287,19.28,78.42]
[1693865960040,78.42,19.287,19.284,0.18945769]
[1693865963143,78.42,19.288,19.284,0.18945769]
[1693865983157,0.45454546,19.299,19.284,0.18945769]
[1693865983158,78.42,19.287,19.284,0.18945769]
[1693865989059,78.42,19.29,19.284,0.18945769]
[1693866001377,78.42,19.29,19.283,78.42]
[1693866004783,78.42,19.29,19.288,0.12627986]
[1693866005382,78.42,19.29,19.284,0.18945769]
[1693866013086,78.42,19.292,19.285,78.42]
[1693866017384,78.42,19.292,19.281,28.85398481]
[1693866017591,78.42,19.286,19.279,78.42]
[1693866020092,78.42,19.286,19.284,0.12630604]
[1693866021898,78.42,19.286,19.28,0.18949697]
[1693866023091,78.42,19.283,19.276,78.67271319]
[1693866023296,0.45454546,19.29,19.276,0.25271319]
[1693866023495,78.42,19.277,19.276,0.25271319]
[1693866024099,78.42,19.281,19.276,0.25271319]
[1693866031304,78.42,19.281,19.274,78.42]
[1693866033107,78.42,19.279,19.272,78.42]
[1693866043115,78.42,19.277,19.27,391.03758817]
[1693866043310,78.42,19.278,19.271,78.42]
[1693866044014,0.45454546,19.29,19.27,27.10646139]
[1693866044015,15.56,19.274,19.27,27.10646139]
[1693866044220,15.56,19.274,19.268,78.42]
[1693866044513,78.42,19.269,19.261,78.42]
[1693866045514,78.42,19.263,19.257,29.4500125]
[1693866045812,78.42,19.26,19.252,78.42]
[1693866047222,78.42,19.262,19.255,78.42]
[1693866059825,78.42,19.259,19.252,78.42]
[1693866064326,78.42,19.261,19.255,78.42]
[1693866073240,78.42,19.264,19.257,78.42]
[1693866080340,78.42,19.266,19.26,78.42]
[1693866080545,78.42,19.266,19.245,0.22727272]
[1693866080546,78.42,19.27,19.263,78.42]
[1693866082046,78.42,19.272,19.266,78.42]
[1693866087650,78.42,19.272,19.262,28.53017397]
[1693866087651,78.42,19.267,19.262,28.53017397]
[1693866088055,78.42,19.267,19.26,78.42]
[1693866093257,0.45454546,19.276,19.261,78.42]
[1693866093258,78.42,19.268,19.261,78.42]
[1693866098559,78.42,19.271,19.264,78.42]
[1693866107369,15.57,19.264,19.259,21.4207]
[1693866109866,78.42,19.262,19.255,78.42]
[1693866110067,78.42,19.258,19.252,78.42]
[1693866112370,0.45454546,19.257,19.238,22.054]
[1693866112576,78.42,19.247,19.238,78.42]
[1693866112868,78.42,19.247,19.239,21.5024]
[1693866113375,78.42,19.247,19.239,99.9224]
[1693866113571,78.42,19.247,19.239,78.42]
[1693866113969,78.42,19.247,19.24,21.5024]
[1693866117974,87.52,19.249,19.24,21.5024]
[1693866118176,87.52,19.249,19.237,87.52]
[1693866118375,87.52,19.252,19.24,87.52]
[1693866119973,87.52,19.255,19.243,87.52]
[1693866120173,87.52,19.255,19.243,116.63313094]
[1693866122579,87.52,19.255,19.252,0.06325844]
[1693866123177,87.52,19.257,19.252,0.06325844]
[1693866130494,87.52,19.253,19.246,21.4148]
[1693866133696,87.52,19.255,19.246,21.4148]
[1693866137993,87.52,19.257,19.246,108.9348]
[1693866147207,87.52,19.254,19.246,21.4148]
[1693866147904,0.45454546,19.268,19.246,21.4148]
[1693866148104,78.72,19.252,19.246,21.4148]
[1693866149100,78.72,19.252,19.245,78.72]
[1693866150210,15.58,19.245,19.236,78.72]
[1693866150403,78.72,19.244,19.236,78.72]
[1693866150705,78.72,19.244,19.237,21.7287]
[1693866153315,15.58,19.242,19.237,21.7287]
[1693866159814,15.58,19.242,19.231,87.57]
[1693866160014,87.57,19.238,19.226,87.57]
[1693866160217,15.58,19.245,19.226,87.57]
[1693866160218,15.58,19.233,19.226,20.3501]
[1693866161620,87.57,19.234,19.226,20.3501]
[1693866162121,87.57,19.237,19.226,20.3501]
[1693866163319,87.57,19.237,19.227,0.12]
[1693866168923,87.57,19.242,19.231,87.57]
[1693866183246,87.57,19.245,19.234,0.12]
[1693866192950,78.79,19.242,19.235,78.79]
[1693866194348,78.79,19.243,19.235,78.79]
[1693866196344,15.59,19.242,19.235,78.79]
[1693866198553,78.79,19.243,19.235,78.79]
[1693866201752,78.79,19.245,19.238,78.79]
[1693866204255,78.79,19.248,19.241,108.80420293]
[1693866204457,78.79,19.252,19.245,78.79]
[1693866207858,78.79,19.252,19.242,22.1801]
[1693866208155,87.46,19.254,19.242,109.6401]
[1693866213161,87.46,19.254,19.244,87.46]
[1693866214054,87.46,19.254,19.245,0.06328144]
[1693866216954,87.46,19.25,19.241,30.01420293]
[1693866217156,15.59,19.245,19.234,87.46]
[1693866221368,15.59,19.242,19.232,87.46]
[1693866221559,15.59,19.24,19.232,87.46]
[1693866221866,0.45454546,19.239,19.232,87.46]
[1693866222059,0.45454546,19.238,19.232,87.46]
[1693866222262,15.59,19.24,19.232,87.46]
[1693866222459,0.45454546,19.239,19.232,87.46]
[1693866222763,0.45454546,19.238,19.232,87.46]
[1693866222959,15.59,19.24,19.232,87.46]
[1693866223163,0.45454546,19.239,19.231,22.0878]
[1693866229975,87.46,19.238,19.231,22.0878]
[1693866230376,87.46,19.238,19.227,0.12]
[1693866237974,87.46,19.238,19.222,21.8137]
[1693866237975,78.86,19.236,19.228,78.86]
[1693866242381,78.86,19.231,19.224,78.86]
[1693866242581,0.45454546,19.23,19.224,78.86]
[1693866243082,0.45454546,19.23,19.222,78.86]
[1693866243277,78.86,19.229,19.222,78.86]
[1693866243478,78.86,19.229,19.223,22.0286]
[1693866244085,0.45454546,19.259,19.225,78.86]
[1693866244385,15.6,19.231,19.225,78.86]
[1693866248483,78.86,19.231,19.224,78.98]
[1693866256493,15.6,19.227,19.223,22.0286]
[1693866256693,15.6,19.227,19.221,78.86]
[1693866256893,78.86,19.226,19.222,20.628]
[1693866257194,15.6,19.225,19.222,20.628]
[1693866257393,78.86,19.223,19.215,78.86]
[1693866257597,78.86,19.223,19.216,9.55693963]
[1693866257991,78.86,19.223,19.216,9.68693963]
[1693866258196,78.86,19.228,19.221,78.86]
[1693866258790,78.86,19.228,19.222,21.5729]
[1693866258994,15.6,19.227,19.222,21.5729]
[1693866262198,78.86,19.225,19.222,21.5729]
[1693866271409,15.6,19.227,19.222,21.5729]
[1693866276408,78.86,19.232,19.225,78.86]
[1693866276608,78.86,19.235,19.228,78.86]
[1693866281616,78.86,19.235,19.229,22.2346]
[1693866283119,15.48,19.236,19.23,78.86]
[1693866287121,78.86,19.237,19.23,78.86]
[1693866303233,78.86,19.237,19.229,22.2346]
[1693866303234,78.86,19.238,19.231,78.86]
[1693866305931,78.86,19.241,19.234,78.86]
[1693866306130,78.86,19.244,19.237,78.86]
[1693866306533,78.86,19.244,19.238,22.1126]
[1693866308938,15.48,19.245,19.239,78.86]
[1693866314238,78.86,19.245,19.238,78.86]
[1693866315537,78.86,19.245,19.239,21.2963]
[1693866316041,78.86,19.245,19.24,15.59]
[1693866320446,78.86,19.248,19.242,15.59]
[1693866321747,78.86,19.25,19.244,78.86]
[1693866324351,78.86,19.25,19.244,15.59]
[1693866324553,78.86,19.25,19.243,78.86]
[1693866327347,78.86,19.245,19.238,78.86]
[1693866328253,15.47,19.24,19.234,78.86]
[1693866333158,78.86,19.242,19.235,78.86]
[1693866335358,78.86,19.244,19.238,78.86]